[Event "Spring Chess Classic B 2024"]
[Site "Saint Louis"]
[Date "2024.04.11"]
[Round "1.1"]
[White "Batsuren, Dambasuren"]
[Black "Raja Harshit"]
[Result "1/2-1/2"]
[ECO "E05"]
[WhiteElo "2515"]
[BlackElo "2458"]
[Annotator "TA"]
[PlyCount "120"]
[EventDate "2024.04.11"]
[EventCountry "USA"]
[SourceTitle "playchess.com"]
[Source "ChessBase"]
[SourceQuality "1"]
[TimeControl "7200+30"]

{[%evp 40,120,10,0,0,0,0,0,0,0,0,0,0,0,0,0,0,0,0,0,0,-14,0,0,0,0,0,0,0,0,0,0,22,8,6,0,0,0,3,7,4,0,0,0,0,0,0,0,0,0,0,0,0,0,0,0,0,0,0,0,0,0,0,0,0,0,0,0,0,0,0,0,0,0,0,0,0,0,0,0,0,0,0]} 1. d4 {[%emt 0:00:03]} Nf6 {[%emt 0:00:44]} 2. c4 {[%emt 0:00:18]} e6 {[%emt 0:00:12]} 3. g3 {[%emt 0:00:20]} d5 {[%emt 0:00:54]} 4. Bg2 {[%emt 0:00:19]} Be7 {[%emt 0:00:27]} 5. Nf3 {[%emt 0:00:35]} O-O {[%emt 0:00:21]} 6. O-O {[%emt 0:00:42]} dxc4 {[%emt 0:00:17]} 7. Qc2 {[%emt 0:00:54]} b5 {[%emt 0:00:25]} 8. a4 {[%emt 0:00:56] E05: Open Catalan: 5 Nf3 Be7.} Bb7 {[%emt 0:01:03]} 9. axb5 {[%emt 0:02:16]} a6 {[%emt 0:01:52]} 10. Nc3 {[%emt 0:00:14]} axb5 {[%emt 0:00:07]} 11. Rxa8 {[%emt 0:00:12]} Bxa8 {[%emt 0:00:06]} 12. Nxb5 {[%emt 0:00:10]} Bd5 {[%emt 0:00:12]} 13. Bg5 {[%emt 0:33:23]} Na6 {[%emt 0:00:47]} 14. Rd1 {[%emt 0:37:40]} Nb4 {[%emt 0:15:53]} 15. Qc1 {[%emt 0:01:58]} Na2 $146 {[%emt 0:14:28]} ({Predecessor:} 15... c5 16. dxc5 Qa5 17. Nfd4 Bxg2 18. Kxg2 Rc8 19. Bxf6 gxf6 20. Nd6 Rxc5 21. Nxc4 Qa8+ 22. Nf3 Qe4 23. b3 Qxe2 24. Rd2 Qe4 25. Rd4 Qa8 26. Qd2 Rf5 27. Qe2 {½-½ Bok,B (2624)-Vazquez,G (2561) USA-chT College final 2022 (1.2)}) 16. Qb1 {[%emt 0:20:55]} Qb8 {[%emt 0:01:59]} 17. Nc3 {[%emt 0:01:34]} Nxc3 {[%emt 0:00:50]} 18. bxc3 {[%emt 0:00:07]} c5 {[%emt 0:04:36]} 19. dxc5 {[%emt 0:04:38]} Qa7 {[%emt 0:06:28]} 20. Qb6 {[%emt 0:09:26]} Qa4 {[%emt 0:06:00]} 21. Re1 {[%emt 0:04:29]} Rc8 {[%emt 0:09:43]} 22. Bxf6 {[%emt 0:01:47]} gxf6 {[%emt 0:04:20]} 23. e4 {[%emt 0:01:10]} Bxc5 {[%emt 0:03:45]} 24. Qb2 {[%emt 0:00:16]} Bc6 {[%emt 0:03:32]} 25. e5 {[%emt 0:00:36]} f5 {[%emt 0:15:54]} 26. Qd2 {[%emt 0:00:17]} Bf8 {[%emt 0:02:10]} 27. Nd4 {[%emt 0:02:23]} Bxg2 {[%emt 0:01:35]} 28. Kxg2 {[%emt 0:00:07]} Qa5 {[%emt 0:01:38]} 29. Qe3 {[%emt 0:03:11]} Bg7 {[%emt 0:01:44]} 30. Kg1 {[%emt 0:00:55]} h6 {[%emt 0:03:10]} 31. h3 {[%emt 0:01:19]} Qd5 {[%emt 0:03:11]} 32. g4 {[%emt 0:00:41]} fxg4 {[%emt 0:00:38]} 33. hxg4 {[%emt 0:00:02]} Rb8 {[%emt 0:01:34]} 34. Qe4 {[%emt 0:01:01]} Qc5 {[%emt 0:05:03]} 35. Kg2 {[%emt 0:00:11]} Rd8 {[%emt 0:00:32]} 36. Re3 {[%emt 0:01:21]} Rd5 {[%emt 0:01:00]} 37. Nf3 {[%emt 0:00:07]} Rd8 {[%emt 0:02:33]} 38. g5 {[%emt 0:01:43]} hxg5 {[%emt 0:02:01]} 39. Nxg5 {[%emt 0:00:03]} Qd5 {[%emt 0:00:14]} 40. Nf3 {[%emt 0:00:20]} Qxe4 {[%emt 0:00:56]} 41. Rxe4 {[%emt 0:00:06]} Rd5 {[%emt 0:00:12]} 42. Rxc4 {[%emt 0:01:35]} Bxe5 {[%emt 0:00:03]} 43. Rc8+ {[%emt 0:00:12]} Kg7 {[%emt 0:00:03]} 44. c4 {[%emt 0:00:25]} Ra5 {[%emt 0:00:05]} 45. Nxe5 {[%emt 0:00:28]} Rxe5 {[%emt 0:00:04]} 46. Kf3 {[%emt 0:00:42]} Kf6 {[%emt 0:00:13]} 47. Rc7 {[%emt 0:00:13]} Re1 {[%emt 0:00:23]} 48. c5 {[%emt 0:00:37]} e5 {[%emt 0:02:01]} 49. c6 {[%emt 0:01:05]} Ke6 {[%emt 0:00:57]} 50. Rc8 {[%emt 0:00:45]} Rc1 {[%emt 0:00:21]} 51. Ke4 {[%emt 0:00:36]} f5+ {[%emt 0:00:20]} 52. Kd3 {[%emt 0:00:19]} Kd6 {[%emt 0:00:08]} 53. Rf8 {[%emt 0:00:17]} Rxc6 {[%emt 0:00:28]} 54. Rxf5 {[%emt 0:00:11]} Ke6 {[%emt 0:00:26]} 55. Rh5 $1 {[%emt 0:00:09]} Rd6+ {[%emt 0:00:06]} 56. Ke3 $1 {[%emt 0:00:08]} Rd4 {[%emt 0:00:32]} 57. Rh6+ {[%emt 0:00:11]} Kf5 {[%emt 0:00:03]} 58. Rh5+ {[%emt 0:00:09]} Ke6 {[%emt 0:00:02]} 59. Rh6+ {[%emt 0:00:09]} Kf5 {[%emt 0:00:02]} 60. Rh5+ {[%emt 0:00:07]} Ke6 {[%emt 0:00:17]} 1/2-1/2

[Event "Spring Chess Classic B 2024"]
[Site "Saint Louis"]
[Date "2024.04.11"]
[Round "1.2"]
[White "Ali Marandi, Cemil Can"]
[Black "Woodward, Andy"]
[Result "1/2-1/2"]
[ECO "D85"]
[WhiteElo "2516"]
[BlackElo "2515"]
[Annotator "TA"]
[PlyCount "82"]
[EventDate "2024.04.11"]
[EventCountry "USA"]
[SourceTitle "playchess.com"]
[Source "ChessBase"]
[SourceQuality "1"]
[TimeControl "7200+30"]

{[%evp 19,82,0,0,0,0,0,0,0,0,0,6,0,0,0,5,0,0,0,0,0,0,0,-4,0,18,14,15,0,0,0,0,0,77,64,58,73,138,0,0,-29,-44,-36,-28,-29,-18,-18,-17,-17,0,0,0,0,0,0,0,0,0,0,0,0,0,0,0,0,0]} 1. d4 {[%emt 0:00:05]} Nf6 {[%emt 0:00:15]} 2. c4 {[%emt 0:00:10]} g6 {[%emt 0:00:13]} 3. Nc3 {[%emt 0:00:13]} d5 {[%emt 0:00:11]} 4. cxd5 {[%emt 0:00:11]} Nxd5 {[%emt 0:00:11]} 5. e4 {[%emt 0:00:06]} Nxc3 {[%emt 0:00:13]} 6. bxc3 {[%emt 0:00:04]} Bg7 {[%emt 0:00:15]} 7. Nf3 {[%emt 0:00:10]} c5 {[%emt 0:00:11]} 8. Bb5+ {[%emt 0:00:14]} Nc6 {[%emt 0:01:21]} 9. O-O {[%emt 0:00:36]} O-O {[%emt 0:00:12]} 10. Bxc6 {[%emt 0:00:20]} bxc6 {[%emt 0:00:13]} 11. Qc2 {[%emt 0:00:13]} cxd4 {[%emt 0:00:12]} 12. cxd4 {[%emt 0:00:11][%cal Oc1e3]} Bg4 {[%emt 0:00:15]} 13. Ne5 {[%emt 0:00:14]} Qxd4 {[%emt 0:00:11]} 14. Bb2 {[%emt 0:00:14][%cal Bc1b2,Bb2e5,Be5c3,Bc3b4,Bb4c5][%mdl 32]} Qb6 {[%emt 0:00:09]} 15. Rab1 {[%emt 0:00:18]} Bxe5 {[%emt 0:00:12]} 16. Bxe5 {[%emt 0:00:08]} Qa5 {[%emt 0:00:10]} 17. Bc3 {[%emt 0:00:41]} Qa6 {[%emt 0:00:56] Strongly threatening ...Be2.} 18. Qd2 {[%emt 0:04:50]} Be6 {[%emt 0:16:57][%cal Oa8b8]} 19. Bb4 {[%emt 0:15:31]} Rad8 {[%emt 0:05:26]} 20. Qh6 $40 {[%emt 0:10:05][%mdl 128] White has some attack.} Rd7 {[%emt 0:02:15]} 21. a3 {[%emt 0:01:43]} f6 {[%emt 0:19:54]} 22. Rfe1 {[%emt 0:04:33][%mdl 1024] White has compensation.} Rc8 {[%emt 0:10:15]} 23. Bc5 {[%emt 0:22:38]} Qa5 {[%emt 0:07:11]} 24. Rbc1 {[%emt 0:00:53]} Qc7 {[%emt 0:03:38]} 25. f4 {[%emt 0:12:18][%cal Bf2f4,Bf4f5][%mdl 32] Threatens to win with f5!} Rcd8 {[%emt 0:03:24] [#]} (25... Rf8 $11 {remains equal.}) 26. f5 $1 $16 {[%emt 0:11:01] White is more active.} Bf7 {[%emt 0:08:28]} 27. e5 $1 {[%emt 0:00:43]} Rd2 {[%emt 0:03:06] [#]} (27... fxe5 $142 28. Bxe7 Rxe7) 28. exf6 {[%emt 0:33:51]} (28. e6 Be8 $15) (28. Bb4 $1 $16 {[%cal Rb4d2]} R2d5 29. exf6 exf6 30. Be7 Rxf5 31. Bxd8 Qxd8 32. Rxc6) 28... exf6 $11 {[%emt 0:00:10]} 29. Re8+ {[%emt 0:00:13]} Rxe8 {[%emt 0:00:08]} 30. Qxd2 {[%emt 0:00:03]} g5 {[%emt 0:08:19]} (30... gxf5 {seems wilder.} 31. Rf1 Qe5 32. Bxa7 Bc4) 31. Re1 {[%emt 0:01:34]} Rxe1+ {[%emt 0:11:04]} 32. Qxe1 {[%emt 0:00:02][%mdl 4096] Endgame. KQB-KQB. The position is equal.} Qd7 {[%emt 0:02:19]} 33. Qe7 {[%emt 0:03:17][%csl Gc5][%cal Re7f8]} (33. g4 {simplifies} Kg7 34. Qe7 Qxe7 35. Bxe7 h5 36. h3) 33... Qd1+ {[%emt 0:02:45]} ({Not} 33... Qxf5 34. Qf8#) (33... Qxe7 {simplifies} 34. Bxe7 Kg7 35. g4 h5) 34. Kf2 {[%emt 0:00:13][%csl Gc5][%cal Re7f8]} Qc2+ {[%emt 0:00:10]} 35. Ke1 {[%emt 0:01:07][%csl Gc5][%cal Re7f8]} Qc1+ {[%emt 0:04:57]} (35... Qxf5 36. Qf8#) 36. Kf2 {[%emt 0:00:34][%csl Gc5][%cal Re7f8]} Qb2+ {[%emt 0:00:12]} 37. Ke1 {[%emt 0:01:14][%csl Gc5][%cal Re7f8]} Qc1+ {[%emt 0:05:23]} ({Worse is} 37... Qxg2 38. Qf8#) 38. Kf2 {[%emt 0:00:08][%csl Gc5][%cal Re7f8]} Qd2+ {[%emt 0:00:10]} 39. Kg1 {[%emt 0:00:28][%csl Gc5][%cal Re7f8]} Qd1+ {[%emt 0:00:21]} 40. Kf2 {[%emt 0:00:07][%csl Gc5][%cal Re7f8]} Qc2+ {[%emt 0:00:04]} 41. Ke1 {[%emt 0:00:24][%csl Gc5][%cal Re7f8]} Qc1+ {[%emt 0:00:53] Weighted Error Value: White=0.07 (flawless) /Black=0.08 (flawless) .  Mistake:       	White=1     	Black=2      Inaccurate:     	White=1     	---        OK:         	White=11    	Black=12     Best:        	White=7     	Black=2      Strong:       	White=1     	---        Brilliant:      	White=1     	---} ({Weaker is} 41... Qxf5 42. Qf8#) 1/2-1/2

[Event "Spring Chess Classic B 2024"]
[Site "Saint Louis"]
[Date "2024.04.11"]
[Round "1.3"]
[White "Kevlishvili, Robby"]
[Black "Kantor, Gergely"]
[Result "0-1"]
[ECO "C55"]
[WhiteElo "2524"]
[BlackElo "2527"]
[Annotator "TA"]
[PlyCount "80"]
[EventDate "2024.04.11"]
[EventCountry "USA"]
[SourceTitle "playchess.com"]
[Source "ChessBase"]
[SourceQuality "1"]
[TimeControl "7200+30"]

{[%evp 18,80,10,20,29,0,34,34,16,13,19,29,12,0,0,0,0,0,19,0,8,0,2,0,0,0,0,-22,-27,-17,-19,-43,-38,-62,-56,-60,-63,-63,-62,-100,-102,-202,-165,-192,-168,-238,-58,-54,-7,-118,-160,-346,-278,-281,-272,-260,-254,-700,-716,-29985,-29986,-29986,-29987,-29986,-29987]} 1. e4 {[%emt 0:00:05]} e5 {[%emt 0:00:03]} 2. Nf3 {[%emt 0:00:04]} Nc6 {[%emt 0:00:03]} 3. Bb5 {[%emt 0:00:05]} a6 {[%emt 0:00:04]} 4. Ba4 {[%emt 0:00:05]} Nf6 {[%emt 0:00:06]} 5. O-O {[%emt 0:00:07]} Be7 {[%emt 0:00:06]} 6. d3 {[%emt 0:00:06][%cal Bd2d3,Bd3d4,Bd4e5][%mdl 32]} b5 {[%emt 0:00:36]} 7. Bb3 {[%emt 0:00:06]} d6 {[%emt 0:00:19][%cal Bd7d6,Bd6d5][%mdl 32]} 8. c3 {[%emt 0:00:12]} O-O {[%emt 0:00:53]} 9. h3 {[%emt 0:00:23]} Na5 {[%emt 0:05:08]} 10. Bc2 {[%emt 0:00:08]} c5 {[%emt 0:00:02]} 11. d4 {[%emt 0:01:01]} d5 {[%emt 0:00:37]} 12. dxe5 {[%emt 0:05:39]} Nxe4 {[%emt 0:00:45] White is slightly better.} 13. Nbd2 {[%emt 0:00:11]} Bf5 {[%emt 0:01:23]} 14. Re1 {[%emt 0:00:24][%cal Rd2e4]} Nc6 {[%emt 0:04:38]} 15. Nf1 {[%emt 0:00:46]} (15. Bxe4 dxe4 16. Qc2 Qd3 (16... exf3 17. Qxf5 fxg2 18. Ne4 $11) 17. Qxd3 exd3 $17) 15... c4 {[%emt 0:11:29]} 16. Be3 {[%emt 0:06:45][%cal Bc1e3,Be3d4,Bd4e5][%mdl 32]} Bg6 {[%emt 0:22:28]} 17. Nd4 {[%emt 0:19:24]} Rc8 {[%emt 0:10:24]} (17... Nxe5 $6 18. f4 $16) 18. f4 {[%emt 0:03:04]} Nxd4 {[%emt 0:03:43]} 19. Bxd4 {[%emt 0:01:05]} f6 {[%emt 0:08:36]} 20. Ne3 {[%emt 0:12:44]} fxe5 {[%emt 0:03:20]} 21. Bxe5 {[%emt 0:00:17]} Bc5 {[%emt 0:01:52]} 22. Kh2 {[%emt 0:07:10]} Nf2 {[%emt 0:04:59]} 23. Qf3 {[%emt 0:00:19]} Bxc2 {[%emt 0:01:42]} 24. Qxf2 {[%emt 0:00:31]} Be4 {[%emt 0:07:16]} 25. Qg3 {[%emt 0:04:30]} Rf7 {[%emt 0:04:30]} 26. Rad1 {[%emt 0:07:41][%cal Oe3c4]} Rc6 $1 {[%emt 0:02:08]} 27. Ng4 {[%emt 0:01:42]} Qf8 {[%emt 0:03:17]} 28. Qh4 {[%emt 0:14:55][%cal Oe1e4]} Be7 {[%emt 0:02:51]} 29. Qf2 {[%emt 0:01:04]} (29. Qg3 $17) 29... Re6 {[%emt 0:06:41] And now ...h5 would win.} 30. Qd2 {[%emt 0:04:48]} h5 $1 {[%emt 0:04:25]} 31. Ne3 {[%emt 0:17:42] [#]} (31. Nf2 $2 Rxe5 32. Nxe4 Rxe4 $19) (31. Rxe4 {is a better defense.} dxe4 32. Qd5) 31... Rxe5 $2 {[%emt 0:00:53]} 32. fxe5 $15 {[%emt 0:00:05]} Bg5 {[%emt 0:00:52]} (32... Rf2 $15 {is more appropriate.} 33. Re2 Qf4+ 34. Kh1 Rf3 (34... Rxe2 35. Qxe2 Qxe5 36. Nf1 $15)) 33. Kg1 {[%emt 0:04:33] [#]} (33. Qd4 $1 $11 {keeps the balance.} Rf2 34. Rd2 (34. Nxd5 {leads to mate.} Rxg2+ 35. Kh1 Qf3)) 33... Bd3 $1 $17 {[%emt 0:03:28] Black is much more active.} 34. b4 $2 {[%emt 0:03:41]} (34. Re2 $17) 34... Qe8 {[%emt 0:04:35] Strongly threatening ...Qe6.} 35. Qb2 {[%emt 0:06:15]} Qxe5 {[%emt 0:06:04]} 36. Nxc4 {[%emt 0:01:18]} Qg3 {[%emt 0:00:11]} 37. Re8+ $2 {[%emt 0:03:33]} (37. Ne5 Be3+ 38. Kh1) 37... Kh7 $19 {[%emt 0:00:23]} 38. Ne5 {[%emt 0:00:27]} Be3+ {[%emt 0:01:00] A strong pair of Bishops. Black mates.} 39. Kh1 {[%emt 0:00:07]} Be4 {[%emt 0:01:34][%cal Rg3h3]} 40. Nf3 {[%emt 0:01:17]} Rxf3 $1 {[%emt 0:01:07] Weighted Error Value: White=0.72/Black=0.15 (very precise) .  Loses game:     	White=1     	---        Missed win:     	---       	Black=1      Mistake:       	White=4     	Black=1      Inaccurate:     	White=3     	Black=1      OK:         	White=8     	Black=12     Best:        	---       	Black=4      Strong:       	---       	Black=3} 0-1

[Event "Spring Chess Classic B 2024"]
[Site "Saint Louis"]
[Date "2024.04.11"]
[Round "1.4"]
[White "Budisavljevic, Luka"]
[Black "Stearman, Josiah"]
[Result "1/2-1/2"]
[ECO "D35"]
[WhiteElo "2483"]
[BlackElo "2462"]
[Annotator "TA"]
[PlyCount "146"]
[EventDate "2024.04.11"]
[EventCountry "USA"]
[SourceTitle "playchess.com"]
[Source "ChessBase"]
[SourceQuality "1"]
[TimeControl "7200+30"]

{[%evp 74,146,-13,-50,0,0,0,-67,-54,-192,-124,-195,-187,-170,-139,-149,-134,-141,-40,-59,-8,-20,-14,-47,0,0,0,0,0,0,0,0,0,-8,-8,-8,-8,-8,-8,-8,-8,-8,-8,-8,0,0,0,0,0,0,0,0,0,0,0,0,0,0,0,0,0,0,0,0,0,0,0,0,0,0,0,0,0,0,0]} 1. c4 {[%emt 0:00:07]} e6 {[%emt 0:00:36]} 2. Nc3 {[%emt 0:00:11]} d5 {[%emt 0:00:06]} 3. d4 {[%emt 0:00:11]} Nf6 {[%emt 0:00:20]} 4. cxd5 {[%emt 0:00:15]} exd5 {[%emt 0:00:03]} 5. Bf4 {[%emt 0:02:22]} c6 {[%emt 0:03:01]} 6. Nf3 {[%emt 0:01:06]} Bd6 {[%emt 0:01:07]} 7. Bxd6 {[%emt 0:00:21]} Qxd6 {[%emt 0:00:08]} 8. e3 {[%emt 0:00:08]} Bf5 {[%emt 0:03:56]} 9. Nh4 {[%emt 0:01:12]} Be4 {[%emt 0:05:17]} 10. Qb3 {[%emt 0:06:51]} Nbd7 {[%emt 0:06:29]} 11. Nxe4 {[%emt 0:08:46]} Nxe4 {[%emt 0:01:22]} 12. Bd3 {[%emt 0:01:01]} Qf6 {[%emt 0:14:20]} 13. Nf3 {[%emt 0:00:37]} Nd6 {[%emt 0:00:29]} 14. O-O {[%emt 0:00:43]} O-O {[%emt 0:02:06]} 15. a4 {[%emt 0:00:21]} a5 {[%emt 0:04:58]} 16. Qc2 {[%emt 0:06:31]} g6 {[%emt 0:01:15]} 17. Nd2 {[%emt 0:00:14]} Nb8 {[%emt 0:03:48]} 18. Nb3 {[%emt 0:02:04]} Qd8 {[%emt 0:02:05]} 19. f3 {[%emt 0:01:31]} Na6 {[%emt 0:00:51]} 20. Bxa6 {[%emt 0:02:05]} Rxa6 {[%emt 0:00:09]} 21. e4 {[%emt 0:01:36]} Nc4 {[%emt 0:01:22]} 22. Qc3 {[%emt 0:04:17]} Rb6 {[%emt 0:10:25]} 23. Rf2 {[%emt 0:08:52]} Rb4 {[%emt 0:01:15]} 24. e5 {[%emt 0:21:59]} f6 {[%emt 0:04:34]} 25. e6 {[%emt 0:15:47]} Nd6 {[%emt 0:09:40]} 26. Re1 {[%emt 0:06:30]} Re8 {[%emt 0:01:33]} 27. Rfe2 {[%emt 0:03:00]} Nf5 {[%emt 0:02:35]} 28. g4 {[%emt 0:04:58]} Qb6 {[%emt 0:03:17]} 29. gxf5 {[%emt 0:01:11]} Rxb3 {[%emt 0:00:04]} 30. Qd2 {[%emt 0:04:30]} Rxf3 {[%emt 0:00:26]} 31. fxg6 {[%emt 0:00:49]} hxg6 {[%emt 0:02:49]} 32. Rg2 {[%emt 0:04:19]} Kh7 {[%emt 0:04:54]} 33. Kh1 {[%emt 0:05:41]} Qb4 {[%emt 0:02:57]} 34. Qe2 {[%emt 0:01:19]} Rf5 {[%emt 0:05:19]} 35. Reg1 {[%emt 0:04:02]} Qxd4 {[%emt 0:00:13]} 36. Rxg6 {[%emt 0:00:45]} Qe4+ {[%emt 0:00:15]} 37. Qxe4 {[%emt 0:00:02]} dxe4 {[%emt 0:00:05]} 38. Rg7+ {[%emt 0:06:19]} Kh8 {[%emt 0:00:34]} 39. R7g6 {[%emt 0:03:03]} Kh7 {[%emt 0:00:35]} 40. Rg7+ {[%emt 0:00:16]} Kh6 $1 {[%emt 0:01:29]} 41. R1g6+ {[%emt 0:00:34]} (41. R1g3 $1 $15) 41... Kh5 $17 {[%emt 0:00:01]} 42. Rg3 {[%emt 0:02:05]} (42. h4 $17 {keeps fighting.}) 42... Rg5 $19 {[%emt 0:00:20]} (42... Rxe6 43. Rh7#) 43. R3xg5+ {[%emt 0:01:43]} fxg5 {[%emt 0:00:05]} 44. Rxb7 {[%emt 0:00:25]} Rxe6 {[%emt 0:00:05]} 45. Kg2 {[%emt 0:00:04] [#]} e3 {[%emt 0:00:33]} (45... Kg4 $1 $17 {White must now prevent ...Kf4.} 46. b4 Re5 47. h3+ Kf4) 46. Kf1 $1 $15 {[%emt 0:00:01]} e2+ {[%emt 0:00:45]} (46... Re4 $15 47. Ke2 Rxa4) 47. Ke1 $11 {[%emt 0:00:01]} Kg4 {[%emt 0:00:14]} 48. b4 {[%emt 0:01:37]} axb4 {[%emt 0:01:57]} (48... Re4 $15 {should be considered.} 49. b5 c5 (49... Rxa4 50. bxc6 Rc4 51. Rc7 $11)) 49. Rxb4+ $11 {[%emt 0:00:01]} Kh3 {[%emt 0:00:05]} 50. a5 {[%emt 0:00:13]} c5 {[%emt 0:05:02]} (50... Kxh2 51. a6 Re7 52. Rg4 (52. Rb2 Ra7 $11)) 51. Rb6 {[%emt 0:01:19]} Re4 {[%emt 0:01:05]} 52. Rh6+ {[%emt 0:00:36]} Kg2 {[%emt 0:00:15]} 53. Rg6 {[%emt 0:00:36]} g4 {[%emt 0:00:30]} 54. a6 {[%emt 0:01:35]} Kf3 {[%emt 0:03:41]} 55. Rf6+ {[%emt 0:00:21]} Ke3 {[%emt 0:00:26]} 56. a7 {[%emt 0:00:24]} Ra4 $1 {[%emt 0:00:15]} 57. Re6+ {[%emt 0:00:06]} Kf3 {[%emt 0:00:12]} 58. Rf6+ {[%emt 0:00:05]} Ke3 {[%emt 0:02:08]} 59. Re6+ {[%emt 0:00:03]} Kd3 {[%emt 0:00:11]} 60. Rd6+ {[%emt 0:00:16]} Kc3 {[%emt 0:00:11]} 61. Rd7 {[%emt 0:01:55]} Ra2 {[%emt 0:00:05]} 62. Rg7 {[%emt 0:00:42]} Kd3 {[%emt 0:00:37]} 63. Kf2 {[%emt 0:00:35]} c4 {[%emt 0:01:55]} (63... Kd2 $5 64. Rd7+ $8 Kc3 $11) 64. Rd7+ {[%emt 0:00:03]} Kc3 {[%emt 0:00:16]} 65. Rg7 {[%emt 0:01:03]} Kd2 {[%emt 0:01:22]} 66. Rd7+ {[%emt 0:00:11]} Kc1 {[%emt 0:00:05]} 67. Ke1 $1 {[%emt 0:00:49]} c3 {[%emt 0:00:29]} 68. Rb7 {[%emt 0:00:14]} c2 {[%emt 0:01:26]} 69. Kxe2 {[%emt 0:00:05]} Ra6 {[%emt 0:00:06]} 70. Rc7 {[%emt 0:00:46]} Kb2 {[%emt 0:00:53]} 71. Rb7+ {[%emt 0:00:04]} Kc1 {[%emt 0:00:12]} (71... Kc3 $5 72. Rc7+ $8 Kb3 73. Rb7+ Kc3 74. Rc7+ Kb2 $11) 72. Rc7 {[%emt 0:00:03]} Kb2 {[%emt 0:00:03]} 73. Rb7+ {[%emt 0:00:03]} Kc1 {[%emt 0:00:03]} (73... Kc3 $5 74. Rc7+ $8 Kb2 $11) 1/2-1/2

[Event "Spring Chess Classic B 2024"]
[Site "Saint Louis"]
[Date "2024.04.11"]
[Round "1.5"]
[White "Chandra, Akshat"]
[Black "Van Foreest, Lucas"]
[Result "1/2-1/2"]
[ECO "B13"]
[WhiteElo "2489"]
[BlackElo "2512"]
[Annotator "TA"]
[PlyCount "57"]
[EventDate "2024.04.11"]
[EventCountry "USA"]
[SourceTitle "playchess.com"]
[Source "ChessBase"]
[SourceQuality "1"]
[TimeControl "7200+30"]

{[%evp 10,57,27,27,28,33,26,29,29,27,27,16,53,46,77,79,81,69,84,75,84,12,72,62,81,0,37,42,76,95,84,21,31,27,24,18,41,43,42,43,44,0,48,48,48,0,15,0,55,0]} 1. e4 {[%emt 0:00:02]} c6 {[%emt 0:00:34]} 2. d4 {[%emt 0:01:04]} d5 {[%emt 0:00:58]} 3. exd5 {[%emt 0:06:18]} cxd5 {[%emt 0:00:18]} 4. Bd3 {[%emt 0:00:08]} Nc6 {[%emt 0:00:30]} 5. c3 {[%emt 0:00:08]} Qc7 {[%emt 0:00:27]} 6. h3 {[%emt 0:06:23]} e6 {[%emt 0:00:33]} 7. Nf3 {[%emt 0:01:11]} Bd6 {[%emt 0:00:32]} 8. O-O {[%emt 0:00:05]} Nge7 {[%emt 0:00:17] White has an edge.} 9. Re1 {[%emt 0:07:37]} O-O {[%emt 0:00:57]} 10. b3 {[%emt 0:06:25]} Bd7 {[%emt 0:14:14]} 11. c4 {[%emt 0:14:33]} f6 {[%emt 0:19:13]} 12. Nc3 {[%emt 0:04:13]} a6 {[%emt 0:00:27]} 13. a3 {[%emt 0:11:46]} Rad8 {[%emt 0:02:14]} 14. Qc2 {[%emt 0:13:16]} Kh8 {[%emt 0:19:34]} 15. Bd2 {[%emt 0:26:56]} (15. Bb2 $16) 15... Bc8 {[%emt 0:12:47]} (15... dxc4 $11 {remains equal.} 16. bxc4 Be8) 16. cxd5 $16 {[%emt 0:02:06]} (16. Bxh7 dxc4 17. Be4 (17. bxc4 Nxd4 18. Nxd4 Bh2+ 19. Kh1 Rxd4 $15) 17... Na5 18. bxc4 Nxc4 $11) 16... exd5 {[%emt 0:00:55] [#]} 17. Na4 {[%emt 0:02:36] White is more active.} ({Much weaker is} 17. Bxh7 f5 18. Ng5 Bh2+ (18... Nxd4 $2 {loses.} 19. Qd1 $18) 19. Kf1 (19. Kh1 Bf4 $15) 19... Bf4 20. Bxf4 Qxf4 $11) ({White should play} 17. b4 $1 $16) 17... g6 {[%emt 0:01:25]} 18. b4 {[%emt 0:02:30]} Bf5 {[%emt 0:01:40]} 19. Nc5 {[%emt 0:00:08]} Bxc5 {[%emt 0:00:19]} 20. bxc5 {[%emt 0:04:56]} (20. dxc5 $16 d4 21. Rad1) 20... Rf7 {[%emt 0:05:09]} 21. Re2 {[%emt 0:02:15]} Kg8 {[%emt 0:05:04]} 22. Rae1 {[%emt 0:00:50]} Bxd3 {[%emt 0:00:25]} 23. Qxd3 {[%emt 0:00:03]} Nf5 {[%emt 0:00:23]} 24. g4 {[%emt 0:02:15]} Ng7 {[%emt 0:01:21]} 25. Kg2 {[%emt 0:06:43]} Rdd7 {[%emt 0:02:44] Black is weak on the dark squares} (25... Qd7 $11 {was preferrable.}) 26. Qb3 $14 {[%emt 0:05:33]} Rd8 {[%emt 0:03:31]} 27. Qd3 {[%emt 0:00:32]} Rdd7 {[%emt 0:00:13]} 28. Qb3 {[%emt 0:00:09]} Rd8 $1 {[%emt 0:00:02]} 29. Qd3 {[%emt 0:02:19] Weighted Error Value: White=0.18 (very precise) /Black=0.15 (very precise) .  Mistake:       	White=4     	Black=2      Inaccurate:     	White=2     	Black=4      OK:         	White=12    	Black=6      Best:        	---       	Black=1      Strong:       	---       	Black=1} ({Better is} 29. Bh6 $14) 1/2-1/2